bitfinex-derivatives/quotes_ETHF0:USTF0_20250422
["timestamp","ask_amount","ask_price","bid_price","bid_amount"]
[1745355015210,1.98163,1699.1,1699.0,1.17655]
[1745355015415,2.79453,1699.1,1699.0,3.78095]
[1745355017715,1.17653,1699.1,1699.0,3.78095]
[1745355018604,2.4556,1699.2,1699.1,1.17648]
[1745355018806,40.8,1699.3,1699.2,1.17641]
[1745355019009,40.8,1699.3,1699.2,2.04181]
[1745355019219,40.8,1699.3,1699.2,3.65991]
[1745355020323,6.322,1699.3,1699.2,6.86771]
[1745355020621,6.322,1699.3,1699.2,11.86771]
[1745355021125,0.00881446,1699.4,1699.3,1.17634]
[1745355021315,0.00881446,1699.4,1699.3,3.62984]
[1745355023716,1.18508446,1699.4,1699.3,2.4535]
[1745355023923,1.18508446,1699.4,1699.2,2.04174]
[1745355023924,1.17634,1699.3,1699.2,0.8654]
[1745355024121,6.10894,1699.3,1699.2,0.8654]
[1745355024322,1.17651,1699.1,1699.0,2.81289]
[1745355024915,2.80961,1699.1,1699.0,2.81289]
[1745355025213,9.13161,1699.1,1699.0,2.81289]
[1745355027020,7.9551,1699.1,1699.0,2.81289]
[1745355027223,9.13158,1699.1,1699.0,2.81289]
[1745355029520,7.9551,1699.1,1699.0,2.81289]
[1745355030024,9.13158,1699.1,1699.0,2.81289]
[1745355031323,7.9551,1699.1,1699.0,2.81289]
[1745355031727,9.13158,1699.1,1699.0,2.81289]
[1745355033024,7.9551,1699.1,1699.0,2.81289]
[1745355033215,9.13158,1699.1,1699.0,2.81289]
[1745355034327,7.9551,1699.1,1699.0,2.81289]
[1745355035128,9.13158,1699.1,1699.0,2.81289]
[1745355035828,7.9551,1699.1,1699.0,2.81289]
[1745355036019,6.322,1699.1,1699.0,2.81289]
[1745355037530,47.122,1699.1,1699.0,2.81289]
[1745355040429,48.7934,1699.1,1699.0,2.81289]
[1745355042325,49.96988,1699.1,1699.0,2.81289]
[1745355043129,48.7934,1699.1,1699.0,2.81289]
[1745355043332,49.96988,1699.1,1699.0,2.81289]
[1745355044725,48.7934,1699.1,1699.0,2.81289]
[1745355045022,49.96988,1699.1,1699.0,2.81289]
[1745355047034,48.7934,1699.1,1699.0,2.81289]
[1745355048436,49.96988,1699.1,1699.0,2.81289]
[1745355052338,48.7934,1699.1,1699.0,2.81289]
[1745355052531,47.122,1699.1,1699.0,2.81289]
[1745355054143,6.322,1699.1,1699.0,2.81289]
[1745355055147,3.67279,1699.3,1699.2,1.17641]
[1745355056247,9.99479,1699.3,1699.2,1.17641]
[1745355060449,9.13559,1699.3,1699.2,4.58021]
[1745355067850,6.322,1699.3,1699.2,7.78801]
[1745355068152,0.00881446,1699.4,1699.3,1.17634]
[1745355068348,1.18508446,1699.4,1699.3,2.91264]
[1745355069053,7.50708446,1699.4,1699.3,2.91264]
[1745355069749,6.33081446,1699.4,1699.3,2.91264]
[1745355071744,7.50708446,1699.4,1699.3,2.91264]
[1745355072052,7.50708446,1699.4,1699.3,1.17634]
[1745355072252,10.91128446,1699.4,1699.3,1.17634]
[1745355073143,4.58928446,1699.4,1699.3,1.17634]
[1745355074056,2.56841446,1699.4,1699.3,2.88074]
[1745355074254,8.89041446,1699.4,1699.3,2.88074]
[1745355074445,8.03041446,1699.4,1699.3,2.88074]
[1745355076152,9.20668446,1699.4,1699.3,2.88074]
[1745355086358,8.03041446,1699.4,1699.0,3.2078]
[1745355086559,2.94103,1699.2,1698.8,1.17665]
[1745355086864,1.17667,1698.9,1698.8,2.89375]
[1745355087055,1.17667,1698.9,1698.8,6.09763052]
[1745355087462,3.6735,1699.0,1698.9,1.17662]
[1745355087662,1.99248052,1699.0,1698.9,1.17662]
[1745355091658,1.99248052,1699.0,1698.9,2.95282]
[1745355093765,0.81588052,1699.0,1698.9,2.95282]
[1745355094165,0.81588052,1699.0,1698.9,3.79562]
[1745355095769,1.99243052,1699.0,1698.9,3.79562]
[1745355099470,0.81588052,1699.0,1698.9,3.79562]
[1745355099670,3.2078,1699.2,1698.9,3.79562]
[1745355099866,0.8862,1699.3,1699.2,1.17641]
[1745355100072,7.93757602,1699.4,1699.3,1.17634]
[1745355101062,7.93757602,1699.4,1699.3,2.91174]
[1745355101269,14.25957602,1699.4,1699.3,2.91174]
[1745355102065,8.36133446,1699.4,1699.3,2.91174]
[1745355102787,8.36133446,1699.4,1699.3,3.78244]
[1745355103074,0.00881446,1699.4,1699.3,3.78244]
[1745355103775,0.00881446,1699.4,1699.3,10.93924]
[1745355107570,1.78091446,1699.4,1699.3,10.93924]
[1745355107767,1.78091446,1699.4,1699.3,6.5551]
[1745355107768,2.95718446,1699.4,1699.3,6.5551]
[1745355108060,3.78158446,1699.4,1699.3,7.73144]
[1745355109569,3.78158446,1699.4,1699.3,2.73144]
[1745355110074,10.10358446,1699.4,1699.3,2.73144]
[1745355112269,3.78158446,1699.4,1699.3,2.73144]
[1745355114472,4.66368446,1699.4,1699.3,2.73144]
[1745355115167,1.17648,1699.2,1699.1,1.17643]
[1745355115369,1.17648,1699.1,1699.0,5.95419]
[1745355115571,4.57008,1699.1,1699.0,5.95419]
[1745355115974,2.5877,1699.1,1699.0,5.95419]
[1745355116175,1.7056,1699.1,1699.0,7.63529]
[1745355120788,2.88208,1699.1,1699.0,7.63529]
[1745355121084,1.7056,1699.1,1699.0,7.63529]
[1745355121972,41.97639,1699.3,1699.2,1.17641]
[1745355122176,48.29839,1699.3,1699.2,1.17641]
[1745355124186,47.122,1699.3,1699.2,1.17641]
[1745355124688,48.8793,1699.3,1699.2,1.17641]
[1745355125189,8.0793,1699.3,1699.2,1.17641]
[1745355125388,6.322,1699.3,1699.2,1.17641]
[1745355125590,6.31710057,1699.3,1699.2,7.81601]
[1745355126188,0.00881446,1699.4,1699.3,1.17634]
[1745355126381,0.00881446,1699.4,1699.3,10.83294]
[1745355140598,0.00881446,1699.4,1699.3,8.33014]
[1745355140903,2.94028446,1699.4,1699.3,8.33014]
[1745355141105,4.68868446,1699.4,1699.3,8.33014]
[1745355141304,11.01068446,1699.4,1699.3,8.33014]
[1745355141600,1.17634,1699.3,1699.2,5.822]
[1745355141799,1.17648,1699.1,1699.0,5.11851]
[1745355141995,1.17655,1699.0,1698.9,4.38435]
[1745355142297,41.97655,1699.0,1698.9,4.38435]
[1745355142599,40.8,1699.0,1698.9,4.38435]
[1745355143096,42.5484,1699.0,1698.9,4.38435]
[1745355143601,43.72495,1699.0,1698.9,4.38435]
[1745355143797,42.5484,1699.0,1698.9,4.38435]
[1745355143997,43.72495,1699.0,1698.9,4.38435]
[1745355147912,42.5484,1699.0,1698.9,4.38435]
[1745355155510,0.00881446,1699.4,1699.3,1.17634]
[1745355155714,1.18514446,1699.4,1699.3,1.17634]
[1745355155904,1.17638,1699.3,1699.2,1.17635]
[1745355156104,7.49838,1699.3,1699.2,1.17635]
[1745355156906,10.95928,1699.3,1699.2,1.17635]
[1745355163208,8.0629,1699.3,1699.2,1.17635]
[1745355163413,8.0629,1699.3,1699.2,2.91265]
[1745355164110,1.7409,1699.3,1699.2,2.91265]
[1745355164610,1.7409,1699.3,1699.2,1.17635]
[1745355168205,1.7409,1699.3,1699.2,2.92835]
[1745355169221,0.00881446,1699.4,1699.3,1.17634]
[1745355169525,0.00881446,1699.4,1699.3,7.85654]
[1745355170212,0.00881446,1699.4,1699.3,11.79554]
[1745355171318,0.00881446,1699.4,1699.3,8.32314]
[1745355171619,0.00881446,1699.4,1699.3,9.16404]
[1745355171824,1.74401446,1699.4,1699.3,9.16404]
[1745355174214,1.74401446,1699.4,1699.3,10.87254]
[1745355174415,1.74401446,1699.4,1699.3,8.32314]
[1745355174824,3.40181446,1699.4,1699.3,8.32314]
[1745355177922,3.40181446,1699.4,1699.3,9.93364]
[1745355178616,2.59531446,1699.4,1699.3,9.93364]
[1745355179316,3.77158446,1699.4,1699.3,8.32314]
[1745355180024,2.59531446,1699.4,1699.3,8.32314]
[1745355182018,3.77158446,1699.4,1699.3,3.939]
[1745355182220,10.09358446,1699.4,1699.3,3.939]
[1745355182626,10.09358446,1699.4,1699.3,5.11534]
[1745355188431,10.09358446,1699.4,1699.3,1.17634]
[1745355198929,1.17641,1699.3,1699.2,1.17636]
[1745355199129,1.17641,1699.3,1698.7,6.14958]
[1745355199130,13.51654156,1699.3,1698.7,6.14958]
[1745355199432,1.17664,1699.0,1698.9,1.17657]
[1745355199834,4.62124,1699.0,1698.9,1.17657]
[1745355200232,10.94324,1699.0,1698.9,1.17657]
[1745355200933,10.94324,1699.0,1698.7,6.5727]
[1745355201139,1.17668,1698.8,1698.7,4.38062052]
[1745355201342,1.17668,1698.8,1698.7,4.38063052]
[1745355201939,2.91307,1698.9,1698.8,1.17668]
[1745355202238,9.23507,1698.9,1698.8,1.17668]
[1745355203244,9.23507,1698.9,1698.8,3.76568]
[1745355204143,2.91307,1698.9,1698.8,10.08768]
[1745355206642,2.91307,1698.9,1698.8,7.49868]
[1745355207236,2.91307,1698.9,1698.8,1.17668]
[1745355207941,1.7364,1698.9,1698.6,4.77557103]
[1745355208140,1.17675,1698.7,1698.6,5.95234103]
[1745355208644,2.87025,1698.7,1698.6,5.95234103]
[1745355209045,4.50445,1698.7,1698.6,5.95234103]
[1745355209640,45.30445,1698.7,1698.6,5.95234103]
[1745355210041,1.17696,1698.5,1698.4,1.17692]
[1745355210242,1.17696,1698.5,1698.4,1.99032]
[1745355210549,2.89116,1698.5,1698.4,1.99032]
[1745355211241,2.89116,1698.5,1698.4,8.31232]
[1745355212149,2.89116,1698.5,1698.4,9.95332]
[1745355212349,2.89116,1698.5,1698.4,3.63132]
[1745355213141,2.89116,1698.5,1698.4,9.95332]
[1745355215342,2.89116,1698.5,1698.4,8.31232]
[1745355216444,2.89116,1698.5,1698.4,7.49892]
[1745355217351,2.89116,1698.5,1698.4,1.17692]
[1745355218053,1.17696,1698.4,1698.3,0.00881446]
[1745355218245,4.53836,1698.4,1698.3,0.00881446]
[1745355218446,7.74616,1698.4,1698.3,0.00881446]
[1745355218849,1.1771,1698.2,1698.1,6.95392]
[1745355219247,2.8523,1698.2,1698.1,6.95392]
[1745355219552,43.6523,1698.2,1698.1,6.95392]
[1745355223650,43.6523,1698.2,1698.1,4.38492]
[1745355225349,43.6523,1698.2,1698.1,6.00442]
[1745355225856,40.8,1698.2,1698.1,6.00442]
[1745355226755,2.9565,1698.4,1698.3,1.17703]
[1745355227156,43.7565,1698.4,1698.3,1.17703]
[1745355227453,43.7565,1698.4,1698.3,2.02333]
[1745355228156,43.7565,1698.4,1698.3,9.98593]
[1745355231646,1.7795,1698.4,1698.3,9.98593]
[1745355231851,1.18576446,1698.5,1698.4,1.17696]
[1745355232158,41.98576446,1698.5,1698.4,9.24696]
[1745355232955,43.67886446,1698.5,1698.4,9.24696]
[1745355233157,43.67886446,1698.5,1698.4,2.92496]
[1745355234152,43.67886446,1698.5,1698.4,9.24696]
[1745355236255,43.67886446,1698.5,1698.4,2.92496]
[1745355237151,43.67886446,1698.5,1698.4,9.24696]
[1745355237758,2.87886446,1698.5,1698.4,9.24696]
[1745355238261,2.87886446,1698.5,1698.4,7.49896]
[1745355240255,2.87886446,1698.5,1698.4,1.17696]
[1745355242157,2.87886446,1698.5,1698.4,7.49896]
[1745355243166,0.00881446,1698.5,1698.4,10.70676]
[1745355243462,0.00881446,1698.5,1698.4,12.35176]
[1745355245057,1.18570446,1698.5,1698.4,12.35176]
[1745355245460,0.00881446,1698.5,1698.4,12.35176]
[1745355248860,40.8,1698.7,1698.6,1.17682]
[1745355249065,1.7553,1699.0,1698.6,10.08486]
[1745355249269,1.6275,1698.9,1698.8,4.38442]
[1745355249464,1.6275,1698.9,1698.8,6.98252]
[1745355249670,41.97658,1699.0,1698.9,1.17662]
[1745355249871,40.8,1699.0,1698.9,2.92072]
[1745355250059,40.8,1699.0,1698.9,9.24272]
[1745355250266,42.4452,1699.0,1698.9,9.24272]
[1745355251172,43.62175,1699.0,1698.9,9.24272]
[1745355252675,43.62175,1699.0,1698.9,7.49862]
[1745355253170,43.62175,1699.0,1698.9,1.17662]
[1745355254171,43.62175,1699.0,1698.9,7.49862]
[1745355255475,43.62175,1699.0,1698.9,9.16522]
[1745355256175,43.62175,1699.0,1698.9,1.17662]
[1745355257275,43.62175,1699.0,1698.9,7.49862]
[1745355258264,43.62175,1699.0,1698.9,1.17662]
[1745355258463,1.17662,1698.9,1698.8,6.33081446]
[1745355258672,4.53322,1698.9,1698.8,6.32689498]
[1745355259177,4.53322,1698.9,1698.8,0.00489498]
[1745355261577,1.17694,1698.5,1698.4,1.1769]
[1745355262176,1.17694,1698.5,1698.4,7.4989]
[1745355262474,2.90394,1698.5,1698.4,7.4989]
[1745355264277,1.17677,1698.7,1698.6,1.17675]
[1745355264479,1.727,1698.7,1698.6,1.17675]
[1745355264677,1.17674,1698.8,1698.7,1.17675]
[1745355264876,2.90374,1698.8,1698.7,1.17675]
[1745355265078,2.90374,1698.8,1698.7,2.85745]
[1745355265378,2.90374,1698.8,1698.7,9.17945]
[1745355265979,2.90374,1698.8,1698.7,8.0027]
[1745355266172,2.90374,1698.8,1698.7,6.322]
[1745355269184,1.17682,1698.6,1698.5,2.04116]
[1745355269778,2.78822,1698.6,1698.5,2.86876]
[1745355270180,2.78822,1698.6,1698.5,9.19076]
[1745355270672,2.78822,1698.6,1698.5,6.322]
[1745355270878,3.64642,1698.6,1698.5,6.322]
[1745355271280,3.64642,1698.6,1698.5,7.49889]
[1745355274486,2.78822,1698.6,1698.5,7.49889]
[1745355274689,2.78822,1698.6,1698.5,9.11869]
[1745355275888,2.78822,1698.6,1698.5,12.32649]
[1745355278989,2.78822,1698.6,1698.5,6.322]
[1745355279185,1.17689,1698.5,1698.4,2.00455]
[1745355279386,3.72719,1698.5,1698.4,2.00455]
[1745355279793,3.72719,1698.5,1698.4,0.8276]
[1745355280294,3.72719,1698.5,1698.4,7.1496]
[1745355281094,3.72719,1698.5,1698.4,8.32656]
[1745355281994,3.72719,1698.5,1698.4,7.49896]
[1745355282190,3.72719,1698.5,1698.4,6.322]
[1745355283293,1.17696,1698.4,1698.3,5.10803]
[1745355283495,2.85826,1698.4,1698.3,5.10803]
[1745355284196,2.85826,1698.4,1698.3,11.43003]
[1745355284595,1.17717,1698.1,1698.0,3.2078]
[1745355284796,1.17717,1698.1,1698.0,1.17724]
[1745355285196,1.69011446,1698.2,1697.9,5.95839]
[1745355285197,1.17724,1698.0,1697.9,5.95839]
[1745355285392,2.85854,1698.0,1697.9,5.95839]
[1745355286899,1.6813,1698.0,1697.9,5.95839]
[1745355287089,2.85854,1698.0,1697.9,7.70289]
[1745355287290,0.00881446,1698.2,1697.9,10.64608]
[1745355287487,1.18596446,1698.2,1698.1,1.17717]
[1745355287693,2.90786446,1698.2,1698.1,1.17717]
[1745355287893,3.74596446,1698.2,1698.1,1.17717]
[1745355288498,3.74596446,1698.2,1698.0,6.12948]
[1745355288499,1.17717,1698.1,1698.0,6.12948]
[1745355288798,2.89907,1698.1,1698.0,6.12948]
[1745355289403,2.89907,1698.1,1698.0,2.92168]
[1745355292400,2.89907,1698.1,1698.0,6.12948]
[1745355294004,2.89907,1698.1,1698.0,4.38498]
[1745355294305,1.1775,1697.7,1697.6,1.17746]
[1745355294503,1.17745,1697.7,1697.6,3.70203]
[1745355294707,41.97745,1697.7,1697.6,3.70203]
[1745355295997,43.71735,1697.7,1697.6,3.70203]
[1745355297997,43.80213112,1697.7,1697.6,2.06232]
[1745355298198,44.68283112,1697.7,1697.6,2.06232]
[1745355302200,5.88819,1697.5,1697.0,3.2078]
[1745355302400,1.17791,1697.1,1696.8,6.15298]
[1745355302601,1.17782,1697.2,1697.1,1.17786]
[1745355302804,1.17794,1697.0,1696.9,1.17795]
[1745355303005,0.08478112,1697.0,1696.9,1.178]
[1745355303193,0.08478112,1697.0,1696.9,2.8921]
[1745355303398,1.26271112,1697.0,1696.9,2.8921]
[1745355303606,1.26271112,1697.0,1696.9,1.178]
[1745355303804,0.08478112,1697.0,1696.9,1.178]
[1745355303999,1.17793,1697.0,1696.9,1.178]
[1745355304199,1.32445955,1697.0,1696.9,1.178]
[1745355305001,1.178,1696.9,1696.8,6.82214]
[1745355305209,1.178,1696.9,1696.8,6.82217]
[1745355305707,1.32448955,1697.0,1696.9,1.178]
[1745355305898,0.14652955,1697.0,1696.9,1.178]
[1745355306100,0.14652955,1697.0,1696.9,2.8708]
[1745355307402,1.32445955,1697.0,1696.9,2.8708]
[1745355307608,1.32445955,1697.0,1696.9,1.178]
[1745355310207,1.178,1696.9,1696.8,6.84384]
[1745355310409,0.14652955,1697.0,1696.9,1.178]
[1745355310410,1.32451955,1697.0,1696.9,1.178]
[1745355310809,0.14652955,1697.0,1696.9,1.178]
[1745355311000,0.00881446,1697.3,1697.2,1.17779]
[1745355311812,0.00881446,1697.3,1697.2,2.86259]
[1745355312412,0.00881446,1697.3,1697.2,6.07039]
[1745355313616,3.2078,1697.6,1697.5,1.17759]
[1745355313910,0.8108,1697.9,1697.6,1.17752]
[1745355313911,1.17748,1697.7,1697.6,1.17752]
[1745355315712,3.21661446,1697.8,1697.6,1.17752]
[1745355316014,1.17745,1697.7,1697.6,1.17752]
[1745355316218,1.17745,1697.7,1697.6,2.06452]
[1745355316413,2.82295,1697.7,1697.6,2.06452]
[1745355316611,1.6455,1697.7,1697.6,2.06452]
[1745355316916,2.82295,1697.7,1697.6,2.06452]
[1745355318613,1.17752,1697.6,1697.5,1.18640446]
[1745355318815,2.93602,1697.6,1697.5,1.18640446]
[1745355319013,2.93602,1697.6,1697.5,0.00881446]
[1745355319208,7.93602,1697.6,1697.5,0.00881446]
[1745355319514,1.17772,1697.3,1697.2,5.10979]
[1745355320207,1.17797,1697.0,1696.9,1.17795]
[1745355321015,2.93431,1697.1,1697.0,1.17793]
[1745355322219,1.17793,1697.0,1696.9,2.83065]
[1745355322420,2.93433,1697.0,1696.9,1.17795]
[1745355323519,1.7564,1697.0,1696.9,1.17795]
[1745355323714,1.7564,1697.0,1696.9,3.71385]
[1745355324912,1.178,1696.9,1696.8,5.11003]
[1745355325924,3.75739,1697.0,1696.9,1.178]
[1745355326424,1.178,1696.9,1696.8,6.84322]
[1745355326615,2.8802,1696.9,1696.8,6.84322]
[1745355328316,2.8802,1696.9,1696.8,5.11007]
[1745355328529,2.8802,1696.9,1696.8,3.932]
[1745355329519,2.8802,1696.9,1696.8,5.11007]
[1745355330624,2.8802,1696.9,1696.8,6.87787]
[1745355332127,2.8802,1696.9,1696.8,3.932]
[1745355332325,3.7093,1696.9,1696.8,3.932]
[1745355332926,3.7093,1696.9,1696.8,5.11007]
[1745355333327,3.7093,1696.9,1696.8,3.932]
[1745355334824,3.7093,1696.9,1696.8,5.11007]
[1745355335023,3.7093,1696.9,1696.8,3.932]
[1745355335625,3.7093,1696.9,1696.8,5.11007]
[1745355336632,3.7093,1696.9,1696.8,3.932]
[1745355337131,1.17807,1696.8,1696.7,1.17808]
[1745355337325,2.92487,1696.8,1696.7,1.17808]
[1745355340038,0.00881446,1696.9,1696.8,1.17807]
[1745355340238,0.00881446,1696.9,1696.8,2.84507]
[1745355343427,1.18681446,1696.9,1696.8,2.84507]
[1745355343625,1.18681446,1696.9,1696.8,6.77607]
[1745355343830,0.00881446,1696.9,1696.8,6.77607]
[1745355344435,1.18681446,1696.9,1696.8,6.77607]
[1745355344635,2.80521446,1696.9,1696.8,6.77607]
[1745355345829,1.62721446,1696.9,1696.8,6.77607]
[1745355349644,2.80521446,1696.9,1696.8,6.77607]
[1745355349947,1.62721446,1696.9,1696.8,6.77607]
[1745355354244,2.80521446,1696.9,1696.8,6.77607]
[1745355354838,1.62721446,1696.9,1696.8,6.77607]
[1745355355639,2.80521446,1696.9,1696.8,6.77607]
[1745355356238,1.62721446,1696.9,1696.8,6.77607]
[1745355359750,1.62721446,1696.9,1696.6,4.60881]
[1745355359946,2.0669,1696.8,1696.7,1.17807]
[1745355360250,1.17821,1696.7,1696.6,1.17819]
[1745355360444,2.5503,1696.7,1696.6,1.17819]
[1745355361249,2.87124,1696.7,1696.6,2.96189]
[1745355361449,1.6931,1696.7,1696.6,2.96189]
[1745355362050,0.8888,1696.8,1696.7,1.17814]
[1745355362254,0.8888,1696.8,1696.7,2.96184]
[1745355362547,1.70191446,1696.9,1696.8,1.17807]
[1745355362751,1.70191446,1696.9,1696.8,2.03827]
[1745355363354,2.87991446,1696.9,1696.8,2.03827]
[1745355364545,1.70191446,1696.9,1696.8,2.03827]
[1745355365352,1.17809,1696.8,1696.7,1.17807]
[1745355365555,2.87994446,1696.9,1696.8,1.17807]
[1745355366353,6.08774446,1696.9,1696.8,1.17807]
[1745355367051,11.08774446,1696.9,1696.8,1.17807]
[1745355367549,1.17821,1696.7,1696.6,1.17818]
[1745355367954,4.60391,1696.7,1696.6,1.17818]
[1745355369952,1.17821,1696.6,1696.5,4.38602]
[1745355370250,1.17821,1696.6,1696.4,5.10729]
[1745355370251,1.17828,1696.5,1696.4,5.10729]
[1745355371456,2.93766,1696.6,1696.5,1.17828]
[1745355371656,1.7594,1696.6,1696.5,1.17828]
[1745355372049,1.7594,1696.6,1696.5,2.01688]
[1745355372852,2.93761,1696.6,1696.5,2.01688]
[1745355373257,1.7594,1696.6,1696.5,2.01688]
[1745355373455,1.7594,1696.6,1696.5,3.67528]
[1745355375459,1.7594,1696.6,1696.5,1.17828]
[1745355375760,2.93761,1696.6,1696.5,1.17828]
[1745355375961,2.93761,1696.6,1696.5,2.06208]
[1745355377461,2.93761,1696.6,1696.5,1.17828]
[1745355377762,2.93766,1696.6,1696.5,1.17828]
[1745355378461,1.17828,1696.5,1696.4,5.1073]
[1745355378662,2.82698,1696.5,1696.4,5.1073]
[1745355382564,1.6487,1696.5,1696.4,5.1073]
[1745355382763,1.6487,1696.5,1696.4,7.5798]
[1745355384961,2.82698,1696.5,1696.4,5.1073]
[1745355385268,2.82698,1696.5,1696.4,1.1783]
[1745355386657,2.82698,1696.5,1696.3,3.2078]
[1745355386658,1.17842,1696.3,1696.2,6.3837]
[1745355386972,1.17842,1696.3,1696.2,7.56214]
[1745355387166,1.17842,1696.3,1696.2,1.17844]
[1745355387468,2.96462,1696.3,1696.2,1.17844]
[1745355387870,43.76462,1696.3,1696.2,1.17844]
[1745355391271,1.17833,1696.5,1696.1,1.6971]
[1745355391473,2.94693,1696.5,1696.4,1.1783]
[1745355391770,43.74693,1696.5,1696.4,1.1783]
[1745355392670,42.5686,1696.5,1696.4,1.1783]
[1745355392871,42.5686,1696.5,1696.4,2.8415]
[1745355393466,1.7686,1696.5,1696.4,2.8415]
[1745355393874,2.94688,1696.5,1696.4,2.8415]
[1745355396583,1.17835,1696.4,1696.3,2.83126]
[1745355396882,2.80535,1696.4,1696.3,2.83126]
[1745355397577,2.80535,1696.4,1696.3,4.57806]
[1745355398968,1.17835,1696.4,1696.3,4.57806]
[1745355401077,1.627,1696.5,1696.4,1.17835]
[1745355401379,7.07614156,1697.1,1696.8,1.17807]
[1745355401684,63.64110023,1697.3,1696.8,1.17807]
[1745355401878,65.29270023,1697.3,1697.2,1.17779]
[1745355402094,24.49270023,1697.3,1697.2,1.17779]
[1745355402292,22.84110023,1697.3,1697.2,1.17779]
[1745355402687,22.84110023,1697.3,1697.2,2.87319]
[1745355403084,3.2078,1697.3,1697.2,2.87319]
[1745355403289,4.9405,1697.3,1697.2,2.87319]
[1745355403892,3.2078,1697.3,1697.2,2.87319]
[1745355404793,1.17779,1697.2,1697.1,1.18669069]
[1745355404985,4.38557,1697.3,1697.2,1.17779]
[1745355405189,6.11827,1697.3,1697.2,1.17779]
[1745355405394,1.17779,1697.2,1697.1,0.00884069]
[1745355405593,3.77849,1697.2,1697.1,0.00884069]
[1745355405893,3.77849,1697.2,1697.1,1.18670069]
[1745355406094,3.77849,1697.2,1697.1,0.00884069]
[1745355406283,3.77849,1697.2,1697.1,1.18670069]
[1745355406488,3.77849,1697.2,1697.1,0.00884069]
[1745355407895,3.2078,1697.3,1697.2,1.17779]
[1745355408095,0.00884069,1697.4,1697.3,1.17772]
[1745355408397,0.00884069,1697.4,1697.3,3.84252]
[1745355409501,1.72054069,1697.4,1697.3,3.84252]
[1745355410400,2.89819069,1697.4,1697.3,3.84252]
[1745355410797,2.89824069,1697.4,1697.3,1.17772]
[1745355410990,1.17772,1697.3,1697.2,7.53873]
[1745355411189,2.88942,1697.3,1697.2,7.53873]
[1745355411998,1.7117,1697.3,1697.2,7.53873]
[1745355412998,0.00884069,1697.4,1697.3,1.17772]
[1745355413199,0.00884069,1697.4,1697.3,2.88842]
[1745355413692,1.18649069,1697.4,1697.3,2.88842]
[1745355414098,2.86029069,1697.4,1697.3,2.88842]
[1745355414792,1.68264069,1697.4,1697.3,2.88842]
[1745355415800,2.86029069,1697.4,1697.3,2.88842]
[1745355416897,0.00884069,1697.4,1697.3,2.88842]
[1745355419287,2.03433,1697.8,1697.7,1.17745]
[1745355419494,44.48823,1697.8,1697.7,1.17745]
[1745355420203,44.48823,1697.8,1697.6,2.06776]
[1745355420204,1.17745,1697.7,1697.6,2.06776]
[1745355420503,2.83135,1697.7,1697.6,2.06776]
[1745355425803,1.17752,1697.6,1697.5,5.6578]
[1745355426005,2.79522,1697.6,1697.5,5.10259]
[1745355426706,41.97738,1697.8,1697.7,1.17745]
[1745355426903,40.8,1697.8,1697.7,1.17745]
[1745355427204,40.8,1697.8,1697.7,4.62825]
[1745355428505,41.97738,1697.8,1697.7,4.62825]
[1745355429100,41.97738,1697.8,1697.7,1.7393]
[1745355429300,1.17745,1697.7,1697.6,1.47196]
[1745355429906,2.87855,1697.7,1697.6,1.47196]
[1745355430204,2.87855,1697.7,1697.6,0.2945]
[1745355430404,40.8,1697.8,1697.6,0.2945]
[1745355430405,44.0078,1697.8,1697.6,0.2945]
[1745355430601,2.54504069,1697.9,1697.6,5.2834]
[1745355430901,1.17742,1697.8,1697.7,2.95853]
[1745355431208,1.17745,1697.7,1697.6,1.47197]
[1745355431409,1.17745,1697.7,1697.6,3.25307]
[1745355431605,2.87855,1697.7,1697.6,3.25307]
[1745355431809,2.87855,1697.7,1697.6,0.2945]
[1745355432006,8.73885,1697.7,1697.6,0.2945]
[1745355433808,8.73885,1697.7,1697.6,0.1303153]
[1745355434020,1.17765,1697.4,1697.3,1.1777]
[1745355434306,4.38545,1697.4,1697.3,1.1777]
[1745355434507,1.17772,1697.3,1697.2,5.10274]
[1745355434713,3.79652,1697.3,1697.2,5.10274]
[1745355435014,3.79652,1697.3,1697.2,6.72724]
[1745355436704,3.79652,1697.3,1697.2,3.925]
[1745355437511,3.79652,1697.3,1697.2,5.10279]
[1745355437707,3.79652,1697.3,1697.2,3.925]
[1745355438413,3.79652,1697.3,1697.1,0.30344069]
[1745355438414,1.17779,1697.2,1697.1,0.30344069]
[1745355438711,2.87469,1697.2,1697.1,0.00884069]
[1745355439213,2.87469,1697.2,1697.1,1.18670069]
[1745355440012,2.87469,1697.2,1697.1,0.00884069]
[1745355440505,11.08249,1697.2,1697.1,0.00884069]
[1745355443014,6.08249,1697.2,1697.1,0.00884069]
[1745355444108,11.08249,1697.2,1697.1,6.9e-07]
[1745355444416,17.07857177,1697.2,1697.1,6.9e-07]
[1745355444814,1.17828,1696.5,1696.4,2.81499]
[1745355445206,1.17828,1696.5,1696.4,1.17829]
[1745355445409,1.17828,1696.5,1696.1,1.17851]
[1745355445410,1.17852,1696.2,1696.1,1.17851]
[1745355445816,1.17852,1696.2,1696.1,6.17851]
[1745355446319,2.94262,1696.2,1696.1,6.17851]
[1745355446616,0.00884069,1696.3,1696.2,1.17849]
[1745355446915,0.00884069,1696.3,1696.2,3.65239]
[1745355447215,0.00884069,1696.3,1696.2,7.57739]
[1745355447615,5.89824156,1696.6,1696.5,1.17828]
[1745355448306,1.17828,1696.5,1696.4,2.6182]
[1745355448514,2.82828,1696.5,1696.4,2.6182]
[1745355450317,1.65,1696.5,1696.2,9.17145]
[1745355450615,1.17842,1696.3,1696.2,11.78965]
[1745355450817,2.82839,1696.4,1696.3,1.17842]
[1745355452313,1.17842,1696.3,1696.2,8.8598]